bitfinex/quotes_BTCUSD_20250331
["timestamp","ask_amount","ask_price","bid_price","bid_amount"]
[1743434743236,5.51118595,83998.0,83997.0,2.53796089]
[1743434743433,5.47291836,83998.0,83997.0,2.54396089]
[1743434743639,5.47308666,83998.0,83997.0,2.54396089]
[1743434743835,5.47308666,83998.0,83997.0,2.94396089]
[1743434744045,5.47308666,83998.0,83997.0,2.85978089]
[1743434744247,5.47308666,83998.0,83997.0,3.26819213]
[1743434744452,5.47308666,83998.0,83997.0,3.25961128]
[1743434744698,5.47308666,83998.0,83997.0,3.11920628]
[1743434744824,5.47308666,83998.0,83997.0,3.12511128]
[1743434745432,5.47308666,83998.0,83997.0,3.13365213]
[1743434745635,5.47308666,83998.0,83997.0,3.13965213]
[1743434745816,5.47308666,83998.0,83997.0,2.62160628]
[1743434746256,5.47308666,83998.0,83997.0,2.88636831]
[1743434746458,5.47308666,83998.0,83997.0,2.89236831]
[1743434746660,5.47308666,83998.0,83997.0,3.14237631]
[1743434746879,5.47308666,83998.0,83997.0,3.15691716]
[1743434747085,5.47308666,83998.0,83997.0,3.14491716]
[1743434747287,5.47308666,83998.0,83997.0,2.90090916]
[1743434747648,5.47308666,83998.0,83997.0,2.66340916]
[1743434747846,5.47308666,83998.0,83997.0,2.65740916]
[1743434748032,5.47308666,83998.0,83997.0,2.66336916]
[1743434748226,5.47308666,83998.0,83997.0,2.66936916]
[1743434748628,5.47308666,83998.0,83997.0,2.90747216]
[1743434748809,5.47308666,83998.0,83997.0,2.91937716]
[1743434749422,5.47308666,83998.0,83997.0,2.91337716]
[1743434749663,5.47308666,83998.0,83997.0,2.66336916]
[1743434749872,5.47308666,83998.0,83997.0,2.66936916]
[1743434750086,5.47308666,83998.0,83997.0,2.65736916]
[1743434750295,5.47308666,83998.0,83997.0,2.66336916]
[1743434750532,5.47308666,83998.0,83997.0,2.66936916]
[1743434750726,5.47308666,83998.0,83997.0,2.66336916]
[1743434751380,5.47308666,83998.0,83997.0,1.83934831]
[1743434751582,5.47308666,83998.0,83997.0,1.63086831]
[1743434751786,5.47308666,83998.0,83997.0,1.43334831]
[1743434751957,5.47308666,83998.0,83997.0,2.02486831]
[1743434752158,5.47308666,83998.0,83997.0,2.03086831]
[1743434752559,5.47308666,83998.0,83997.0,2.03686831]
[1743434752836,5.71118666,83998.0,83997.0,2.03686831]
[1743434753006,5.72309166,83998.0,83997.0,2.03086831]
[1743434753421,5.72309166,83998.0,83997.0,1.63686831]
[1743434753589,5.72309166,83998.0,83997.0,1.43934831]
[1743434753790,5.72309166,83998.0,83997.0,1.32274445]
[1743434754104,5.72309166,83998.0,83997.0,1.31674445]
[1743434754630,5.72309166,83998.0,83997.0,1.32274445]
[1743434755239,5.72309166,83998.0,83997.0,1.31708105]
[1743434755442,6.10339166,83998.0,83997.0,0.0063366]
[1743434755646,6.51679166,83998.0,83997.0,0.0063366]
[1743434755849,6.51679166,83998.0,83953.0,0.4086]
[1743434755850,0.250053,83982.0,83981.0,1.21126279]
[1743434755982,0.061808,83972.0,83971.0,1.21126279]
[1743434756191,0.250131,83956.0,83952.0,0.61784]
[1743434756389,0.250131,83956.0,83955.0,1.43386665]
[1743434756747,0.64309773,83956.0,83955.0,1.21140221]
[1743434756967,1.17910159,83956.0,83955.0,4.2e-07]
[1743434757159,1.17910159,83956.0,83931.0,0.61792]
[1743434757160,0.550148,83950.0,83931.0,0.61792]
[1743434757368,0.14166673,83956.0,83949.0,0.12260386]
[1743434757572,0.0487,83956.0,83949.0,0.12260386]
[1743434757777,0.250147,83951.0,83949.0,0.12260386]
[1743434757946,0.011911,83950.0,83949.0,0.12260386]
[1743434758108,0.250147,83951.0,83949.0,0.12260386]
[1743434758319,0.00892573,83975.0,83949.0,0.12260386]
[1743434758521,0.01191,83958.0,83949.0,1.43386665]
[1743434758732,0.01191,83958.0,83949.0,1.33386665]
[1743434758733,0.011911,83956.0,83949.0,1.33386665]
[1743434758937,0.238224,83955.0,83949.0,1.33986665]
[1743434759137,0.238227,83954.0,83949.0,1.33986665]
[1743434759621,0.238229,83953.0,83950.0,0.4]
[1743434759770,0.250138,83954.0,83951.0,0.12260386]
[1743434759978,0.238229,83953.0,83951.0,0.12260386]
[1743434760176,0.011911,83952.0,83951.0,0.12260386]
[1743434760381,0.250145,83952.0,83951.0,0.12260386]
[1743434760876,0.250137,83954.0,83951.0,0.52260386]
[1743434761074,0.250141,83953.0,83952.0,0.12260386]
[1743434761277,0.250141,83953.0,83951.0,0.4]
[1743434761278,0.011911,83952.0,83951.0,0.4]
[1743434761486,0.011911,83952.0,83949.0,0.19752]
[1743434761487,0.011911,83950.0,83949.0,0.19752]
[1743434761709,0.011911,83950.0,83949.0,0.006]
[1743434762469,0.250141,83953.0,83949.0,1.21074445]
[1743434762470,0.250139,83953.0,83949.0,1.21074445]
[1743434762676,0.238218,83957.0,83951.0,0.006]
[1743434762878,0.238229,83953.0,83952.0,0.12260386]
[1743434763098,0.2249534,83953.0,83952.0,0.12260386]
[1743434763324,0.20480652,83953.0,83952.0,0.12260386]
[1743434764154,0.506009,83967.0,83952.0,1.33286665]
[1743434764317,0.01191,83958.0,83952.0,1.52438665]
[1743434764595,0.011911,83956.0,83952.0,1.52438665]
[1743434764784,0.01303316,83966.0,83956.0,0.1]
[1743434764986,0.65159,83967.0,83957.0,0.22260386]
[1743434765187,0.238214,83958.0,83957.0,0.12260386]
[1743434765386,0.238214,83958.0,83957.0,0.31416386]
[1743434765387,0.250124,83958.0,83957.0,0.31416386]
[1743434766519,0.23832622,83968.0,83957.0,0.31416386]
[1743434766766,0.25023522,83968.0,83957.0,0.32016386]
[1743434766966,0.001,83958.0,83957.0,0.31416386]
[1743434767321,0.011909,83964.0,83957.0,0.32016386]
[1743434767519,0.238213,83959.0,83957.0,0.31416386]
[1743434767726,0.01191,83958.0,83957.0,0.12260386]
[1743434767904,0.0120784,83958.0,83957.0,0.006]
[1743434768104,0.39266327,83958.0,83957.0,0.006]
[1743434768306,0.4389784,83958.0,83957.0,0.011]
[1743434768706,0.8523784,83958.0,83957.0,1e-06]
[1743434769617,0.8523784,83958.0,83957.0,0.006001]
[1743434769803,0.8523784,83958.0,83957.0,1e-06]
[1743434770010,0.011911,83950.0,83949.0,0.0003368]
[1743434770208,0.963548,83950.0,83949.0,0.0003368]
[1743434771779,1.08615186,83950.0,83949.0,0.0003368]
[1743434771984,1.08615186,83950.0,83909.0,0.61824]
[1743434771985,0.011916,83914.0,83909.0,0.61824]
[1743434772215,0.011916,83914.0,83906.0,1.21126279]
[1743434772216,0.250276,83907.0,83906.0,1.21126279]
[1743434772410,0.250291,83902.0,83901.0,0.002]
[1743434772584,0.545331,83902.0,83901.0,0.002]
[1743434772783,0.31345114,83902.0,83901.0,0.002]
[1743434773107,0.56374214,83902.0,83901.0,0.002]
[1743434773311,0.31345114,83902.0,83901.0,0.00246551]
[1743434773808,0.01445114,83902.0,83901.0,0.00246551]
[1743434774008,0.001,83902.0,83901.0,0.12506937]
[1743434774210,0.001,83902.0,83901.0,0.00246551]
[1743434774416,0.012918,83902.0,83901.0,0.00246551]
[1743434774629,0.013918,83902.0,83901.0,0.00246551]
[1743434775191,0.01620287,83902.0,83901.0,0.00246551]
[1743434775395,0.002,83902.0,83901.0,0.00246551]
[1743434775595,0.013918,83902.0,83901.0,0.00246551]
[1743434776219,0.01620287,83902.0,83901.0,0.00246551]
[1743434776576,0.013918,83902.0,83901.0,0.00246551]
[1743434780474,0.002,83902.0,83901.0,0.12540657]
[1743434780653,0.002,83902.0,83901.0,0.00280271]
[1743434780857,0.252291,83902.0,83901.0,0.00280271]
[1743434783469,1.092791,83902.0,83901.0,0.00280271]
[1743434784577,1.091791,83902.0,83901.0,0.00280271]
[1743434784807,1.092791,83902.0,83901.0,0.00280271]
[1743434784985,1.013291,83902.0,83901.0,0.00280271]
[1743434785187,1.012291,83902.0,83901.0,0.00280271]
[1743434785586,1.013291,83902.0,83901.0,0.00580271]
[1743434788157,0.965691,83902.0,83901.0,0.00580271]
[1743434788366,1.0587784,83902.0,83901.0,0.00580271]
[1743434788976,0.7587784,83902.0,83901.0,0.00580271]
[1743434789699,0.5084874,83902.0,83901.0,0.00580271]
[1743434790102,0.0950874,83902.0,83901.0,0.12840657]
[1743434790714,0.0940874,83902.0,83901.0,0.12840657]
[1743434791243,0.0950874,83902.0,83901.0,0.12840657]
[1743434791588,0.0940874,83902.0,83901.0,0.12840657]
[1743434791829,0.0950874,83902.0,83901.0,0.12840657]
[1743434792032,0.0940874,83902.0,83901.0,0.12540657]
[1743434792250,0.0942561,83902.0,83901.0,0.12540657]
[1743434792648,0.0952561,83902.0,83901.0,0.12840657]
[1743434793004,0.0952561,83902.0,83901.0,0.31996657]
[1743434793205,0.0942561,83902.0,83901.0,0.31696657]
[1743434794045,0.0952561,83902.0,83901.0,0.31996657]
[1743434794662,0.0952561,83902.0,83901.0,0.43450742]
[1743434794951,0.0952561,83902.0,83901.0,0.41996657]
[1743434795168,0.3455471,83902.0,83901.0,0.00580271]
[1743434795608,0.3455471,83902.0,83901.0,0.19732271]
[1743434796046,0.3455471,83902.0,83901.0,0.00580271]
[1743434796710,0.6455471,83902.0,83901.0,0.00580271]
[1743434796926,0.6455471,83902.0,83901.0,0.00280271]
[1743434796927,0.6435471,83902.0,83901.0,0.00280271]
[1743434797141,0.6445471,83902.0,83901.0,0.00280271]
[1743434797345,0.3455471,83902.0,83901.0,0.00580271]
[1743434798517,0.3445471,83902.0,83901.0,0.00580271]
[1743434798941,0.3435471,83902.0,83901.0,0.00280271]
[1743434799287,0.3435471,83902.0,83901.0,0.00580271]
[1743434799288,0.3445471,83902.0,83901.0,0.00580271]
[1743434799653,0.1061741,83902.0,83901.0,0.00580271]
[1743434799877,0.3455471,83902.0,83901.0,0.00580271]
[1743434800481,0.0952561,83902.0,83901.0,0.00580271]
[1743434800815,0.0952561,83902.0,83901.0,0.12840657]
[1743434801023,0.0952561,83902.0,83901.0,1.33966936]
[1743434801640,0.0942561,83902.0,83901.0,1.33966936]
[1743434802005,0.0932561,83902.0,83901.0,1.33666936]
[1743434802202,0.0942561,83902.0,83901.0,1.33966936]
[1743434802405,0.0942561,83902.0,83901.0,1.59258621]
[1743434802619,0.0942561,83902.0,83901.0,0.14294742]
[1743434803005,0.0932561,83902.0,83901.0,0.13994742]
[1743434803266,0.0942561,83902.0,83901.0,0.13994742]
[1743434803467,0.0952561,83902.0,83901.0,0.14294742]
[1743434803694,0.0942561,83902.0,83901.0,0.14294742]
[1743434804060,0.0952561,83902.0,83901.0,0.14294742]
[1743434804269,0.0952561,83902.0,83901.0,0.395625]
[1743434804462,1e-07,83902.0,83901.0,0.80154142]
[1743434804687,0.011911,83951.0,83930.0,0.238293]
[1743434804894,0.238243,83948.0,83931.0,0.81250275]
[1743434805135,0.01325347,83951.0,83938.0,0.011913]
[1743434805260,0.01325347,83951.0,83940.0,0.1]
[1743434805463,0.238246,83947.0,83941.0,0.12260386]
[1743434805690,0.238242,83949.0,83941.0,0.12260386]
[1743434805951,0.0001686,83953.0,83945.0,0.1]
[1743434806084,0.0001686,83953.0,83946.0,0.12260386]
[1743434806287,0.0001686,83953.0,83947.0,0.19148]
[1743434806483,0.250151,83949.0,83948.0,0.12260386]
[1743434806690,0.23824,83949.0,83948.0,0.12260386]
[1743434807316,0.250148,83950.0,83948.0,0.12260386]
[1743434807974,0.250148,83950.0,83948.0,0.12160386]
[1743434808193,0.011911,83949.0,83948.0,0.12160386]
[1743434808402,0.238233,83952.0,83948.0,0.12160386]
[1743434808570,0.2394056,83953.0,83948.0,0.12160386]
[1743434808772,0.011911,83952.0,83948.0,0.12160386]
[1743434808972,0.238239,83949.0,83948.0,0.12660386]
[1743434809187,0.001,83950.0,83948.0,0.12660386]
[1743434809391,0.250175,83941.0,83940.0,2.61344724]
[1743434809519,0.250175,83941.0,83940.0,2.7360511]
[1743434809923,0.250175,83941.0,83940.0,2.61344724]
[1743434810179,0.550175,83941.0,83940.0,1.21126279]
[1743434810384,0.250199,83933.0,83932.0,1.21074445]
[1743434810583,0.250199,83933.0,83932.0,1.21088403]
[1743434811022,0.238277,83936.0,83932.0,1.33348789]
[1743434811228,0.250182,83939.0,83932.0,1.33348789]
[1743434811468,0.238248,83946.0,83933.0,0.12260386]
[1743434811661,0.001,83941.0,83940.0,0.004]
[1743434811963,0.238246,83947.0,83940.0,0.31400386]
[1743434812081,0.250151,83949.0,83941.0,0.12160386]
[1743434812282,0.01358197,83954.0,83941.0,1.33234831]
[1743434812495,0.2383966,83953.0,83941.0,1.33234831]
[1743434812694,0.001,83946.0,83941.0,1.33234831]
[1743434812900,0.001,83946.0,83943.0,0.1]
[1743434813145,0.0001686,83953.0,83944.0,0.12260386]
[1743434813743,0.0011686,83953.0,83944.0,0.12260386]
[1743434814215,0.0001686,83953.0,83944.0,0.12260386]
[1743434814349,0.001,83949.0,83944.0,0.12260386]
[1743434814697,0.001,83949.0,83945.0,0.4]
[1743434814852,0.001,83949.0,83946.0,0.12260386]
[1743434815208,0.238242,83948.0,83944.0,0.008]
[1743434815353,0.250163,83945.0,83944.0,0.003]
[1743434815788,0.250163,83945.0,83944.0,0.008]
[1743434815985,0.250171,83942.0,83941.0,2.42200724]
[1743434817076,0.251171,83942.0,83941.0,2.42600724]
[1743434818242,0.251171,83942.0,83941.0,1.21474445]
[1743434818395,0.251171,83942.0,83941.0,0.004]
[1743434818992,0.238279,83935.0,83934.0,1.21074445]
[1743434819197,0.001,83942.0,83934.0,1.33334831]
[1743434819395,0.002,83942.0,83941.0,0.003]
[1743434819595,0.002,83942.0,83941.0,1.33686665]
[1743434819831,0.002,83942.0,83941.0,1.33886665]
[1743434820212,0.001,83942.0,83941.0,1.33386665]
[1743434820596,0.001,83942.0,83941.0,1.3603205]
[1743434820800,0.001,83942.0,83941.0,1.5985825]
[1743434821024,0.002,83942.0,83941.0,1.3514075]
[1743434821364,0.003,83942.0,83941.0,1.7514075]
[1743434821770,0.001,83942.0,83941.0,1.7514075]
[1743434821972,0.002,83942.0,83941.0,1.7544075]
[1743434822494,0.001,83942.0,83941.0,1.7514075]
[1743434822699,0.002,83942.0,83941.0,1.7554075]
[1743434823071,0.002,83942.0,83941.0,1.9936695]
[1743434823275,0.002,83942.0,83941.0,1.7554075]
[1743434823889,0.252171,83942.0,83941.0,1.53214665]
[1743434824092,0.252171,83942.0,83941.0,1.40954279]
[1743434824822,0.26523238,83942.0,83941.0,0.007]
[1743434825323,0.26423238,83942.0,83941.0,0.004]
[1743434825700,0.250186,83937.0,83936.0,1.40254279]
[1743434826245,0.02697338,83942.0,83936.0,1.52514665]
[1743434826246,0.001,83942.0,83936.0,1.52514665]
[1743434826449,0.001,83942.0,83937.0,0.12260386]
[1743434826677,0.238233,83952.0,83938.0,0.00238262]
[1743434826882,0.001,83942.0,83941.0,0.004]
[1743434827180,0.001,83942.0,83941.0,0.12560386]
[1743434827401,0.0131921,83953.0,83941.0,0.12260386]
[1743434827607,0.0131921,83953.0,83942.0,0.12260386]
[1743434828014,0.0131921,83953.0,83943.0,0.4]
[1743434828214,0.0131921,83953.0,83944.0,0.12260386]
[1743434828481,0.250163,83945.0,83944.0,0.12260386]
[1743434828689,0.250166,83944.0,83943.0,1.21074445]
[1743434828847,0.250178,83940.0,83939.0,0.19124]
[1743434829051,0.250178,83940.0,83939.0,1.40198445]
[1743434829244,0.250178,83940.0,83939.0,1.21074445]
[1743434829676,0.250184,83938.0,83937.0,0.4003372]
[1743434829886,0.250184,83938.0,83937.0,0.0003372]
[1743434831112,0.001,83940.0,83937.0,0.0003372]
[1743434831283,0.238271,83938.0,83937.0,0.0003372]
[1743434831695,0.250184,83938.0,83937.0,0.0003372]
[1743434832046,0.251184,83938.0,83937.0,0.0033372]
[1743434832665,0.250184,83938.0,83937.0,0.0003372]
[1743434833135,0.252184,83938.0,83937.0,0.0083372]
[1743434834409,0.002,83938.0,83937.0,0.13094106]
[1743434834610,0.251184,83938.0,83937.0,1.33720385]
[1743434835015,0.251184,83938.0,83937.0,1.61659999]
[1743434835214,0.251184,83938.0,83937.0,1.21659999]
[1743434835600,0.252184,83938.0,83937.0,0.0083372]
[1743434835802,0.552184,83938.0,83937.0,0.0083372]
[1743434836414,0.552184,83938.0,83937.0,0.13094106]
[1743434836415,0.002,83938.0,83937.0,0.13094106]
[1743434836618,0.240271,83938.0,83937.0,0.13094106]
[1743434836817,0.002,83938.0,83937.0,0.13094106]
[1743434837252,0.252184,83938.0,83937.0,0.13094106]
[1743434837458,0.252184,83938.0,83937.0,0.0083372]
[1743434838016,0.251184,83938.0,83937.0,0.0033372]
[1743434838220,0.250184,83938.0,83937.0,0.0003372]
[1743434838329,0.250184,83938.0,83937.0,0.0053372]
[1743434838330,0.251184,83938.0,83937.0,0.0053372]
[1743434838699,0.550184,83938.0,83937.0,0.0003372]
[1743434838908,0.627684,83938.0,83937.0,2e-07]
[1743434839046,0.628684,83938.0,83937.0,2e-07]
[1743434839457,0.627684,83938.0,83937.0,2e-07]
[1743434839659,0.628684,83938.0,83937.0,0.0030002]
[1743434840194,0.552184,83938.0,83937.0,0.0030002]
[1743434840462,0.002,83938.0,83937.0,1.21374465]
[1743434840761,0.252184,83938.0,83937.0,1.21374465]
[1743434840916,0.251184,83938.0,83937.0,0.003]
[1743434841120,0.252184,83938.0,83937.0,0.403]
[1743434841315,0.252184,83938.0,83937.0,0.003]
[1743434841517,0.251184,83938.0,83937.0,0.003]
[1743434841719,0.252184,83938.0,83937.0,0.003]
[1743434841924,0.250199,83933.0,83932.0,0.00047678]
[1743434842566,0.550199,83933.0,83932.0,0.00047678]
[1743434843307,0.550199,83933.0,83932.0,7.8e-07]
[1743434843426,0.84840672,83933.0,83932.0,7.8e-07]
[1743434843622,0.250288,83903.0,83902.0,1.21074445]
[1743434843892,0.250291,83902.0,83900.0,0.1912]
[1743434844084,0.250291,83902.0,83901.0,1.21308165]
[1743434844384,0.246291,83902.0,83901.0,1.21308165]
[1743434844592,0.546291,83902.0,83901.0,1.21308165]
[1743434844926,0.54643009,83902.0,83901.0,1.21308165]
[1743434845560,0.31534135,83902.0,83901.0,0.0023372]
[1743434845770,0.56463235,83902.0,83901.0,0.0023372]
[1743434846355,0.56363235,83902.0,83901.0,0.0023372]
[1743434846557,0.26363235,83902.0,83901.0,0.0023372]
[1743434847105,0.26363235,83902.0,83901.0,0.0033372]
[1743434847305,0.26463235,83902.0,83901.0,0.0033372]
[1743434847547,0.26563235,83902.0,83901.0,0.0033372]
[1743434847961,0.26363235,83902.0,83901.0,0.0023372]
[1743434848337,0.26563235,83902.0,83901.0,0.0033372]
[1743434849157,0.68773235,83902.0,83901.0,2e-07]
[1743434849393,0.81033621,83902.0,83901.0,2e-07]
[1743434849708,0.68773235,83902.0,83901.0,2e-07]
[1743434850219,0.250338,83886.0,83885.0,0.1912]
[1743434851792,0.252338,83886.0,83885.0,0.1922]
[1743434852369,0.252338,83886.0,83885.0,0.001]
[1743434853654,0.251338,83886.0,83885.0,0.001]
[1743434853972,0.252338,83886.0,83885.0,0.001]
[1743434854198,0.250354,83881.0,83880.0,0.1912]
[1743434854403,0.250354,83881.0,83880.0,1.40194445]
[1743434854898,0.011921,83884.0,83880.0,1.40194445]
[1743434855108,0.002,83886.0,83881.0,0.12260386]
[1743434855313,0.002,83886.0,83882.0,0.1912]
[1743434855586,0.001,83886.0,83883.0,0.12260386]
[1743434855958,0.011921,83884.0,83882.0,0.1912]
[1743434856156,0.250348,83883.0,83882.0,0.1912]
[1743434856368,0.250348,83883.0,83871.0,1.21274445]
[1743434856369,0.011922,83872.0,83871.0,1.21274445]
[1743434856590,0.55038,83872.0,83871.0,0.002]
[1743434856986,0.96378,83872.0,83871.0,0.002]
[1743434857773,0.96391898,83872.0,83871.0,0.002]
[1743434858001,0.96591898,83872.0,83871.0,0.002]
[1743434858847,0.97489206,83872.0,83871.0,0.002]
[1743434860384,0.97389206,83872.0,83871.0,0.002]
[1743434860561,0.97489206,83872.0,83871.0,0.002]
[1743434860811,0.97389206,83872.0,83871.0,0.002]
[1743434861787,0.97489206,83872.0,83871.0,0.002]
[1743434862406,0.96591898,83872.0,83871.0,0.002]
[1743434862620,0.25251898,83872.0,83871.0,0.002]
[1743434863810,0.25151898,83872.0,83871.0,0.002]
[1743434864587,0.25251898,83872.0,83871.0,0.002]
[1743434864927,0.55251898,83872.0,83871.0,0.002]
[1743434865127,0.55051898,83872.0,83871.0,0.002]
[1743434865429,0.250398,83866.0,83862.0,0.0003372]
[1743434865973,0.550398,83866.0,83862.0,0.0003372]
[1743434866200,0.550398,83866.0,83862.0,4e-07]
[1743434866201,0.550408,83863.0,83862.0,4e-07]
[1743434866314,0.963808,83863.0,83862.0,4e-07]
[1743434866920,0.250422,83858.0,83857.0,4e-07]
[1743434867128,0.78642586,83858.0,83857.0,4e-07]
[1743434867775,1.08642586,83858.0,83857.0,4e-07]
[1743434867990,1.20902972,83858.0,83857.0,4e-07]
[1743434868179,1.16312586,83858.0,83857.0,4e-07]
[1743434868349,1.17188236,83858.0,83857.0,4e-07]
[1743434868661,1.0482785,83858.0,83857.0,4e-07]
[1743434868857,0.9735785,83858.0,83857.0,4e-07]
[1743434869261,0.9745785,83858.0,83857.0,4e-07]
[1743434870174,0.9735785,83858.0,83857.0,4e-07]
[1743434870641,0.9745785,83858.0,83857.0,4e-07]
[1743434870848,0.238552,83839.0,83837.0,1.15603987]
[1743434871004,0.011927,83838.0,83837.0,2.36678432]
[1743434871204,0.250482,83838.0,83837.0,2.48938818]
[1743434871408,0.238555,83838.0,83837.0,2.88938818]
[1743434871998,0.250482,83838.0,83837.0,2.88985369]
[1743434872205,0.250482,83838.0,83837.0,5.1e-07]
[1743434872206,1.0413175,83838.0,83837.0,5.1e-07]
[1743434872412,0.97781951,83838.0,83837.0,5.1e-07]
[1743434873597,0.97681951,83838.0,83837.0,5.1e-07]
[1743434873777,0.97781951,83838.0,83837.0,5.1e-07]
[1743434874345,0.97881951,83838.0,83837.0,5.1e-07]
[1743434874752,0.97881951,83838.0,83821.0,0.60147387]
[1743434874753,0.25053,83822.0,83821.0,0.59681158]
[1743434874957,0.25053,83822.0,83821.0,0.9107549]
[1743434875382,0.25053,83822.0,83821.0,1.3107549]
[1743434875620,0.238599,83823.0,83821.0,1.3107549]
[1743434875822,0.238597,83823.0,83822.0,0.12260386]
[1743434876377,0.250503,83831.0,83822.0,0.12260386]
[1743434876580,0.238583,83828.0,83822.0,0.31380386]
[1743434876782,0.011929,83829.0,83822.0,0.31380386]
[1743434876783,0.011929,83824.0,83822.0,0.31380386]
[1743434877002,0.250526,83823.0,83822.0,0.31280386]
[1743434877210,0.250526,83823.0,83822.0,0.71280386]
[1743434877402,0.251526,83823.0,83822.0,0.71180386]
[1743434877760,0.250526,83823.0,83822.0,0.71180386]
[1743434878185,0.251526,83823.0,83822.0,0.71180386]
[1743434878594,0.252526,83823.0,83822.0,0.31180386]
[1743434878795,0.01193,83822.0,83821.0,0.59711984]
[1743434879144,0.25053,83822.0,83821.0,0.00030826]
[1743434879683,0.25958652,83822.0,83821.0,0.00030826]
[1743434880329,0.26058652,83822.0,83821.0,0.00130826]
[1743434880885,0.26158652,83822.0,83821.0,0.00230826]
[1743434881057,0.26058652,83822.0,83821.0,0.00130826]
[1743434881258,0.25253,83822.0,83821.0,1.21205271]
[1743434881461,0.2396,83822.0,83821.0,1.21205271]
[1743434881662,0.25053,83822.0,83821.0,1.21105271]
[1743434881817,0.2396,83822.0,83821.0,1.33465657]
[1743434882022,0.25153,83822.0,83821.0,1.33465657]
[1743434882212,0.25253,83822.0,83821.0,1.33665657]
[1743434883078,0.25253,83822.0,83821.0,0.00330826]
[1743434883506,0.25253,83822.0,83821.0,1.21405271]
[1743434883681,0.001,83822.0,83821.0,1.33365657]
[1743434883923,0.238596,83824.0,83821.0,1.33365657]
[1743434884042,0.002,83822.0,83821.0,1.21305271]
[1743434884246,0.002,83822.0,83821.0,1.33565657]
[1743434884608,0.002,83822.0,83821.0,1.73565657]
[1743434884741,0.002,83822.0,83821.0,1.73465657]
[1743434884939,0.001,83822.0,83821.0,1.73465657]
[1743434885141,0.25153,83822.0,83821.0,1.73565657]
[1743434885762,0.25153,83822.0,83821.0,1.33665657]
[1743434886065,0.002,83822.0,83821.0,1.33665657]
[1743434886925,0.002,83822.0,83821.0,1.44032742]
[1743434887108,0.002,83822.0,83821.0,1.42839742]
[1743434887962,0.001,83822.0,83821.0,1.42739742]
[1743434888169,0.05936391,83904.0,83821.0,1.42739742]
[1743434888170,0.238574,83832.0,83823.0,0.01454085]
[1743434888391,0.011928,83832.0,83824.0,0.12260386]
[1743434888601,0.238579,83830.0,83824.0,0.12160386]
[1743434888798,0.011928,83835.0,83824.0,0.12160386]
[1743434889156,0.238589,83826.0,83824.0,0.12160386]
[1743434890062,0.238569,83835.0,83824.0,0.12160386]
[1743434890275,0.238574,83832.0,83824.0,0.12398956]
[1743434890474,0.238574,83832.0,83824.0,0.12398957]
[1743434890475,0.001,83832.0,83824.0,0.12398957]
[1743434890674,0.238584,83828.0,83824.0,0.12260386]
[1743434890906,0.238584,83828.0,83825.0,0.4]
[1743434891056,0.238584,83828.0,83826.0,0.12260386]
[1743434891256,0.238581,83829.0,83826.0,0.12260386]
[1743434891705,0.238578,83830.0,83827.0,0.4]
[1743434891950,0.238578,83830.0,83828.0,0.12260386]
[1743434892148,0.238578,83830.0,83829.0,0.19012]
[1743434892348,0.238578,83830.0,83829.0,0.31272386]
[1743434892463,0.238578,83830.0,83829.0,0.71272386]
[1743434893665,0.011928,83832.0,83829.0,0.71172386]
[1743434893896,0.250503,83831.0,83830.0,0.12160386]
[1743434894099,0.250503,83831.0,83830.0,1.33234831]
[1743434894326,0.250503,83831.0,83830.0,1.33134831]
[1743434894547,0.011927,83841.0,83830.0,1.33134831]
[1743434894770,0.238517,83852.0,83832.0,0.011928]
[1743434894980,0.0829,83868.0,83841.0,0.1]
[1743434895189,0.23851,83854.0,83842.0,0.13714471]
[1743434895412,0.238517,83852.0,83842.0,0.13714471]
[1743434895622,0.238521,83850.0,83842.0,0.13614471]
[1743434895798,0.011925,83851.0,83842.0,0.13614471]
[1743434896064,0.238524,83849.0,83842.0,0.13614471]
[1743434896264,0.238529,83847.0,83842.0,0.13614471]
[1743434896675,0.011926,83848.0,83842.0,0.13614471]
[1743434896676,0.250468,83843.0,83842.0,0.12260386]
[1743434896874,0.250468,83843.0,83842.0,0.12160386]
[1743434897285,0.25046,83846.0,83842.0,0.12160386]
[1743434897600,0.002,83847.0,83842.0,0.13060386]
[1743434897801,0.001,83847.0,83843.0,0.61912]
[1743434898014,0.001,83847.0,83844.0,0.12260386]
[1743434898219,0.23851,83854.0,83845.0,0.19108]
[1743434898423,0.238508,83855.0,83846.0,0.12060386]
[1743434898623,0.238513,83853.0,83846.0,0.12060386]
[1743434898830,0.250434,83854.0,83846.0,0.12060386]
[1743434899031,0.238509,83854.0,83846.0,0.12060386]
[1743434899428,0.238526,83848.0,83847.0,0.4]
[1743434899636,0.250452,83848.0,83847.0,0.31364386]
[1743434900309,0.250452,83848.0,83847.0,0.12260386]
[1743434900458,0.250461,83845.0,83844.0,0.005]
[1743434900660,0.250461,83845.0,83844.0,0.19604]
[1743434901076,0.250461,83845.0,83844.0,0.19104]
[1743434901881,0.251461,83845.0,83844.0,0.19604]
[1743434902362,0.251461,83845.0,83844.0,0.005]
[1743434902534,0.251461,83845.0,83844.0,0.196]
[1743434903289,0.251461,83845.0,83844.0,0.005]
[1743434903670,0.252461,83845.0,83844.0,0.01]
[1743434905324,0.252461,83845.0,83844.0,0.201]
[1743434907110,0.252461,83845.0,83844.0,0.01]
[1743434907427,0.965861,83845.0,83844.0,0.01]
[1743434910492,0.665861,83845.0,83844.0,0.01]
[1743434910713,0.4154,83845.0,83844.0,0.13260386]
[1743434910927,0.002,83845.0,83844.0,0.38306786]
[1743434911103,0.002,83845.0,83844.0,0.23260386]
[1743434911303,0.002,83845.0,83844.0,0.88806771]
[1743434911535,0.002,83845.0,83844.0,0.88568271]
[1743434911942,0.002,83845.0,83844.0,0.64714471]
[1743434912880,0.001,83845.0,83844.0,0.64214471]
[1743434913079,0.001,83845.0,83844.0,0.62760386]
[1743434913297,0.239535,83845.0,83844.0,0.52760386]
[1743434913492,0.0023376,83845.0,83844.0,0.53060386]
[1743434913692,0.0013376,83845.0,83844.0,0.52260386]
[1743434913917,0.0013376,83845.0,83844.0,0.12260386]
[1743434914091,0.0023376,83845.0,83844.0,0.12760386]
[1743434914572,0.2537986,83845.0,83844.0,0.32152386]
[1743434914811,0.2537986,83845.0,83844.0,0.13060386]
[1743434915044,0.0033376,83845.0,83844.0,0.32152386]